bitfinex/quotes_SOLUSD_20220114
["timestamp","ask_amount","ask_price","bid_price","bid_amount"]
[1642151038926,4.15874381,146.73,146.68,0.02]
[1642151040329,0.25,146.73,146.68,0.02]
[1642151040532,13.46,146.76,146.68,0.02]
[1642151041128,3.90885507,146.75,146.68,0.02]
[1642151041632,4.15885507,146.75,146.68,0.02]
[1642151042331,4.15885507,146.75,146.68,10.243]
[1642151043731,3.90885507,146.74,146.68,10.243]
[1642151043931,4.15885507,146.74,146.68,0.02]
[1642151045232,14.38385507,146.74,146.68,0.02]
[1642151045836,3.90885507,146.73,146.68,0.02]
[1642151046034,4.15885507,146.73,146.68,0.02]
[1642151046234,12.9524,146.72,146.68,0.02]
[1642151046634,13.2024,146.72,146.68,0.02]
[1642151046837,3.90885507,146.71,146.68,0.02]
[1642151047035,4.15885507,146.71,146.68,0.02]
[1642151047436,1.5,146.7,146.68,0.02]
[1642151047836,2.01,146.7,146.68,0.02]
[1642151048765,1.5,146.7,146.68,0.02]
[1642151048939,1.5,146.7,146.69,1.53219997]
[1642151049238,37.0922,146.75,146.69,10.29139993]
[1642151049437,0.25,146.75,146.69,10.29139993]
[1642151050541,3.90854007,146.74,146.69,10.29139993]
[1642151051239,3.90854007,146.74,146.69,20.51349993]
[1642151052540,4.16854007,146.74,146.69,20.51349993]
[1642151053241,4.16854007,146.74,146.71,27.58560238]
[1642151053644,1.5,146.73,146.71,27.58560238]
[1642151053844,3.90854007,146.74,146.72,1.53219997]
[1642151055046,3.90854007,146.74,146.72,4.25819997]
[1642151055345,3.90854007,146.74,146.72,14.47819997]
[1642151055948,4.16854007,146.74,146.72,1.53219997]
[1642151056574,4.16854007,146.74,146.73,3.03219996]
[1642151056974,5.66854007,146.74,146.71,27.58560238]
[1642151057578,5.66854007,146.74,146.69,0.02]
[1642151057977,5.40854007,146.74,146.69,0.02]
[1642151058280,3.90854007,146.74,146.69,10.2421]
[1642151058479,3.90854007,146.74,146.69,10.5021]
[1642151058677,3.90854007,146.74,146.7,27.08541718]
[1642151058977,3.90854007,146.74,146.72,0.02]
[1642151059180,2.90854007,146.74,146.73,1.53219997]
[1642151060078,3.16854007,146.74,146.73,1.53219997]
[1642151060479,4.66854008,146.74,146.72,0.02]
[1642151060679,4.91854008,146.74,146.72,0.02]
[1642151061080,4.66854008,146.74,146.72,0.02]
[1642151061480,4.91854008,146.74,146.72,0.04]
[1642151061680,4.91854008,146.74,146.72,3.10439993]
[1642151061882,4.91854008,146.74,146.72,0.04]
[1642151062081,1.5,146.73,146.72,0.04]
[1642151062981,0.5,146.73,146.72,0.04]
[1642151063583,0.5,146.73,146.72,0.02]
[1642151064080,0.5,146.73,146.67,10.2229]
[1642151064481,0.5,146.73,146.66,2.726]
[1642151064882,0.5,146.73,146.69,30.00920314]
[1642151066684,18.58863639,146.77,146.69,30.00920314]
[1642151067084,13.1989,146.77,146.69,30.00920314]
[1642151068086,14.87575959,146.77,146.69,30.00920314]
[1642151068490,15.13575959,146.77,146.69,30.00920314]
[1642151069689,15.13575959,146.77,146.69,30.02920314]
[1642151070294,15.13575959,146.77,146.69,30.04920314]
[1642151072699,12.40975959,146.77,146.69,32.77520314]
[1642151073700,2.726,146.76,146.69,30.04920314]
[1642151073898,10.225,146.74,146.69,0.04]
[1642151074097,10.475,146.74,146.69,0.04]
[1642151075824,0.25,146.74,146.69,0.04]
[1642151076024,1.92685959,146.75,146.69,0.04]
[1642151076228,2.726,146.74,146.69,0.04]
[1642151076425,0.25,146.75,146.69,0.04]
[1642151076635,0.25,146.74,146.69,0.04]
[1642151076827,0.25,146.75,146.69,0.04]
[1642151077827,34.0293,146.76,146.69,0.04]
[1642151078029,43.9393,146.76,146.69,0.04]
[1642151079233,33.4554,146.76,146.69,0.04]
[1642151079536,10.16,146.76,146.69,10.2621]
[1642151080435,9.42,146.76,146.69,10.2621]
[1642151081937,9.42,146.76,146.69,0.04]
[1642151082342,9.17,146.76,146.69,0.04]
[1642151083139,19.1336,146.76,146.69,0.04]
[1642151083940,8.91,146.76,146.69,0.04]
[1642151084938,8.66,146.76,146.69,0.04]
[1642151085139,7.66,146.76,146.69,0.04]
[1642151085541,7.66,146.76,146.69,2.766]
[1642151085943,7.66,146.76,146.69,12.9876]
[1642151086343,7.91,146.76,146.69,12.9876]
[1642151087044,8.17,146.76,146.69,12.9876]
[1642151087445,0.51,146.76,146.69,12.9876]
[1642151087643,0.25,146.76,146.7,22.8543]
[1642151087845,1.7147727,146.78,146.71,10.2205]
[1642151088246,0.03791311,146.78,146.71,10.2205]
[1642151088446,1.95254096,146.74,146.71,10.4805]
[1642151088646,1.95254096,146.74,146.72,4.56439993]
[1642151088853,1.95254096,146.74,146.73,37.96168872]
[1642151089051,0.00254096,146.74,146.73,37.96168872]
[1642151089845,0.03791311,146.78,146.73,37.96168872]
[1642151090247,0.03791311,146.78,146.73,112.65168872]
[1642151090447,0.03791311,146.78,146.73,112.90168872]
[1642151090746,0.03791311,146.78,146.74,24.4233]
[1642151090945,0.03791311,146.78,146.76,10.2158]
[1642151091147,0.03791311,146.78,146.77,4.56439993]
[1642151092247,0.03791311,146.78,146.77,14.78009993]
[1642151095352,0.00791311,146.78,146.77,14.78009993]
[1642151095852,0.00791311,146.78,146.77,38.52079993]
[1642151097559,0.00791311,146.78,146.77,41.24579993]
[1642151098453,0.00791311,146.78,146.77,38.52079993]
[1642151099054,0.00791311,146.78,146.77,38.54079993]
[1642151099955,0.00791311,146.78,146.77,38.56079993]
[1642151104289,0.00791311,146.78,146.77,41.53579993]
[1642151105890,0.00791311,146.78,146.77,47.79579993]
[1642151106089,0.00791311,146.78,146.77,41.79579993]
[1642151107291,0.00791311,146.78,146.77,39.07079993]
[1642151108692,0.00791311,146.78,146.77,41.79579993]
[1642151110295,0.00791311,146.78,146.77,41.53105593]
[1642151110696,0.00791311,146.78,146.77,57.44105593]
[1642151110897,0.00791311,146.78,146.77,51.44105593]
[1642151111095,0.00791311,146.78,146.77,48.71605593]
[1642151111297,0.00791311,146.78,146.77,48.20605593]
[1642151111500,0.00791311,146.78,146.77,38.29605593]
[1642151111696,0.00791311,146.78,146.77,28.08035593]
[1642151113095,0.00791311,146.78,146.77,38.54595593]
[1642151113297,0.00791311,146.78,146.77,41.27095593]
[1642151113595,0.00791311,146.78,146.77,67.27095593]
[1642151113996,0.00791311,146.78,146.77,83.18095593]
[1642151114195,0.00791311,146.78,146.77,91.19095593]
[1642151114398,0.00791311,146.78,146.77,65.19095593]
[1642151114596,0.00791311,146.78,146.77,59.19095593]
[1642151114997,0.00791311,146.78,146.77,127.62095593]
[1642151116100,0.00791311,146.78,146.77,133.62095593]
[1642151116301,0.00791311,146.78,146.77,127.36095593]
[1642151116500,0.00791311,146.78,146.77,133.36095593]
[1642151117301,0.00791311,146.78,146.77,127.36095593]
[1642151117503,0.00791311,146.78,146.77,133.36095593]
[1642151117700,0.00791311,146.78,146.77,133.62095593]
[1642151120704,0.00791311,146.78,146.77,133.38095593]
[1642151121109,0.00791311,146.78,146.77,56.95095593]
[1642151122509,0.00791311,146.78,146.77,57.20095593]
[1642151123107,0.00791311,146.78,146.77,57.46095593]
[1642151123306,0.00791311,146.78,146.77,125.89095593]
[1642151125510,0.00791311,146.78,146.77,57.46095593]
[1642151125908,0.00791311,146.78,146.77,57.21095593]
[1642151126308,0.00791311,146.78,146.77,54.48595593]
[1642151127110,0.00791311,146.78,146.77,54.73595593]
[1642151127308,0.00791311,146.78,146.77,127.35617376]
[1642151128309,0.00791311,146.78,146.77,58.66617376]
[1642151128508,0.00791311,146.78,146.77,55.44117376]
[1642151129510,0.00791311,146.78,146.77,123.87117376]
[1642151129910,0.00791311,146.78,146.77,124.13117376]
[1642151130123,0.00791311,146.78,146.77,55.44117376]
[1642151130510,0.00791311,146.78,146.77,55.70117376]
[1642151134413,0.00791311,146.78,146.77,124.13117376]
[1642151137317,0.00791311,146.78,146.77,123.87117376]
[1642151139223,2.725,146.87,146.82,10.2109]
[1642151140629,2.725,146.87,146.82,10.4709]
[1642151140929,6.62781351,146.89,146.82,85.1509]
[1642151141328,6.62781351,146.89,146.82,79.1509]
[1642151141927,3.90481351,146.89,146.82,85.1509]
[1642151142328,3.90481351,146.89,146.82,102.7597]
[1642151142551,3.90481351,146.89,146.82,108.7597]
[1642151142852,2.723,146.91,146.82,108.7597]
[1642151142853,6.62781351,146.91,146.82,108.7597]
[1642151143156,4.16481351,146.91,146.82,108.7597]
[1642151144458,4.16481351,146.91,146.82,111.4827]
[1642151144656,3.90481351,146.91,146.82,105.4827]
[1642151144857,3.90481351,146.91,146.82,111.5027]
[1642151145058,3.90481351,146.91,146.82,105.5227]
[1642151145256,3.90481351,146.91,146.83,9.91]
[1642151145458,3.90481351,146.91,146.87,10.2065]
[1642151145659,3.90481351,146.91,146.88,22.65736413]
[1642151145858,3.90481351,146.91,146.89,0.76745595]
[1642151146056,6.62681351,146.93,146.89,0.76745595]
[1642151146258,3.90481351,146.93,146.89,0.76745595]
[1642151146457,4.16481351,146.93,146.89,0.76745595]
[1642151147458,0.26,146.93,146.89,0.76745595]
[1642151147659,0.26,146.93,146.84,8.972]
[1642151147863,2.972,146.94,146.84,8.972]
[1642151148064,2.972,146.94,146.84,36.72338376]
[1642151148065,3.232,146.94,146.84,36.72338376]
[1642151148266,3.232,146.94,146.85,10.2096]
[1642151148466,3.90481351,146.93,146.85,10.2096]
[1642151148665,2.723,146.92,146.84,27.75138376]
[1642151149062,2.973,146.92,146.84,27.75138376]
[1642151149662,6.87781351,146.92,146.82,0.06]
[1642151149869,6.87781351,146.92,146.82,0.04]
[1642151150064,9.91,146.91,146.89,0.02]
[1642151150262,34.722,146.9,146.89,0.02]
[1642151150465,2.972,146.9,146.89,0.02]
[1642151150662,6.87681351,146.9,146.89,0.02]
[1642151151063,16.78681351,146.9,146.89,0.02]
[1642151151967,17.04629273,146.9,146.89,0.02]
[1642151152168,27.26099273,146.9,146.89,0.02]
[1642151153168,17.04629273,146.9,146.89,0.02]
[1642151153796,16.79629273,146.9,146.89,0.02]
[1642151153971,14.07429273,146.9,146.89,0.02]
[1642151154970,14.32429273,146.9,146.89,0.02]
[1642151155369,10.42,146.9,146.89,0.02]
[1642151156573,0.25,146.9,146.89,29.68316464]
[1642151156772,0.25,146.9,146.89,25.88350872]
[1642151156974,6.1688366,146.91,146.89,25.88350872]
[1642151157376,3.90409259,146.91,146.89,25.88350872]
[1642151157773,3.90409259,146.91,146.9,3.79965592]
[1642151158176,3.90409259,146.93,146.9,3.79965592]
[1642151158578,3.90409259,146.93,146.91,2.722]
[1642151158976,3.90409259,146.93,146.91,2.972]
[1642151159378,3.90409259,146.94,146.92,3.79965592]
[1642151159578,3.90409259,146.94,146.93,2.722]
[1642151160579,10.2075,146.99,146.93,2.722]
[1642151160779,2.721,146.99,146.93,2.722]
[1642151160979,3.231,146.99,146.93,2.722]
[1642151161181,3.231,146.99,146.93,0.0001]
[1642151162181,18.01570707,146.98,146.93,0.0001]
[1642151162379,2.721,146.97,146.89,25.88350872]
[1642151162583,2.971,146.97,146.89,25.88350872]
[1642151162985,3.90331448,146.96,146.89,25.88350872]
[1642151163188,3.90409259,146.95,146.89,25.88350872]
[1642151163589,4.15409259,146.95,146.89,25.88350872]
[1642151163790,3.65409259,146.95,146.89,25.88350872]
[1642151165389,3.65409259,146.95,146.89,25.86350872]
[1642151165789,0.25,146.95,146.89,25.86350872]
[1642151165990,10.4588,146.97,146.89,25.86350872]
[1642151166689,10.4588,146.97,146.89,25.36350872]
[1642151166996,0.25,146.97,146.89,25.36350872]
[1642151167390,3.90239736,146.96,146.89,25.36350872]
[1642151167590,4.15239736,146.96,146.89,25.36350872]
[1642151167990,4.41239736,146.96,146.89,25.36350872]
[1642151168591,0.51,146.96,146.89,25.36350872]
[1642151169011,4.15239736,146.97,146.89,25.36350872]
[1642151169616,0.25,146.97,146.89,25.36350872]
[1642151170113,12.882,146.98,146.89,25.36350872]
[1642151170512,3.90236895,146.96,146.89,25.36350872]
[1642151170713,2.722,146.95,146.89,25.36350872]
[1642151171116,2.972,146.95,146.89,25.36350872]
[1642151171716,2.972,146.95,146.87,2.722]
[1642151171917,0.32431395,146.93,146.84,2.722]
[1642151172118,9.91,146.92,146.81,2.723]
[1642151172320,2.723,146.91,146.81,2.723]
[1642151172518,4.90985959,146.91,146.81,2.723]
[1642151172720,4.90985959,146.91,146.82,30.06883893]
[1642151173120,4.90985959,146.91,146.82,32.79183893]
[1642151173322,0.51,146.91,146.82,30.06883893]
[1642151173520,0.25,146.91,146.83,2.723]
[1642151173720,10.42,146.92,146.83,2.723]
[1642151173922,13.143,146.92,146.83,12.9345]
[1642151175123,10.42,146.92,146.83,12.9345]
[1642151177527,0.51,146.92,146.83,12.9345]
[1642151177730,10.42,146.92,146.83,12.9345]
[1642151177926,10.16,146.92,146.83,12.9345]
[1642151178528,8.55623162,146.96,146.83,13.1845]
[1642151178727,32.95853162,146.96,146.84,32.507]
[1642151178928,30.23553162,146.96,146.88,10.2082]
[1642151179129,5.83323162,146.96,146.89,28.50235866]
[1642151179929,4.15242832,146.96,146.89,28.50235866]
[1642151180827,0.25,146.96,146.89,28.50235866]
[1642151181026,2.972,146.97,146.89,28.50235866]
[1642151181428,13.1809,146.97,146.89,28.50235866]
[1642151181731,14.85775959,146.97,146.89,28.50235866]
[1642151182229,3.90247018,146.96,146.89,28.50235866]
[1642151182635,4.15247018,146.96,146.89,28.50235866]
[1642151184234,0.25,146.96,146.89,28.50235866]
[1642151184430,13.1809,146.97,146.89,28.00235866]
[1642151185533,3.9020578,146.96,146.89,28.00235866]
[1642151185934,4.4120578,146.96,146.89,28.00235866]
[1642151186336,14.6216578,146.96,146.89,28.00235866]
[1642151187762,10.7196,146.96,146.89,28.00235866]
[1642151188361,12.39645959,146.96,146.89,28.00235866]
[1642151188861,10.7196,146.96,146.89,28.00235866]
[1642151189065,10.7196,146.96,146.88,2.722]
[1642151189265,13.1816,146.96,146.87,10.2089]
[1642151189663,3.90223281,146.95,146.87,10.2089]
[1642151189866,3.90223281,146.95,146.86,2.722]
[1642151190064,4.15223281,146.95,146.86,2.722]
[1642151190265,4.15223281,146.95,146.86,25.22591688]
[1642151190462,4.41223281,146.95,146.86,25.22591688]
[1642151190662,4.16223281,146.95,146.86,25.22591688]
[1642151190863,4.16223281,146.95,146.86,35.43551688]
[1642151191463,12.14715959,146.95,146.86,2.722]
[1642151191663,2.722,146.94,146.86,2.722]
[1642151191866,9.91,146.93,146.86,2.722]
[1642151192064,2.723,146.92,146.86,2.722]
[1642151192266,12.883,146.93,146.86,2.722]
[1642151192663,12.883,146.93,146.83,31.09861571]
[1642151192862,12.883,146.93,146.83,54.14201571]
[1642151193264,10.2128,146.92,146.83,54.14201571]
[1642151193463,10.4628,146.92,146.83,54.14201571]
[1642151194163,10.7228,146.92,146.83,64.35371571]
[1642151194364,0.51,146.92,146.83,64.35371571]
[1642151194566,0.25,146.92,146.83,64.35371571]
[1642151194765,10.42,146.93,146.83,64.35371571]
[1642151194964,2.723,146.92,146.83,61.63071571]
[1642151195366,2.973,146.92,146.83,61.63071571]
[1642151196166,0.25,146.92,146.83,61.63071571]
[1642151196567,23.3548,146.93,146.83,61.63071571]
[1642151201971,23.3548,146.93,146.83,51.41901571]
[1642151202670,23.0948,146.93,146.83,51.41901571]
[1642151203071,23.0948,146.93,146.83,51.66901571]
[1642151203272,20.3718,146.93,146.84,2.723]
[1642151203673,20.3718,146.93,146.85,23.9997]
[1642151205473,20.3718,146.93,146.86,26.34365653]
[1642151205872,10.16,146.93,146.86,26.34365653]
[1642151206473,10.42,146.93,146.86,26.34365653]
[1642151207777,10.42,146.93,146.85,23.9997]
[1642151209279,20.6319,146.93,146.85,22.9997]
[1642151210084,1.94864444,146.92,146.85,22.9997]
[1642151210481,2.19864444,146.92,146.85,22.9997]
[1642151210683,1.94864444,146.92,146.85,22.9997]
[1642151211883,11.85864444,146.93,146.85,22.9997]
[1642151212182,12.10864444,146.93,146.86,2.723]
[1642151214087,12.36864444,146.93,146.86,2.723]
[1642151216792,12.36864444,146.93,146.87,26.43140226]
[1642151217092,10.42,146.93,146.87,26.43140226]
[1642151220094,1.94864444,146.92,146.87,26.43140226]
[1642151220294,1.94864444,146.92,146.86,2.723]
[1642151220496,2.19864444,146.92,146.85,25.7227]
[1642151223233,1.94864444,146.92,146.85,25.7227]
[1642151224032,2.20864444,146.92,146.85,25.7227]
[1642151224532,2.45864444,146.92,146.85,25.7227]
[1642151225035,1.94864444,146.92,146.85,25.9727]
[1642151226236,1.94864444,146.92,146.85,36.1831]
[1642151226434,0.26,146.92,146.85,36.1831]
[1642151226933,2.20864444,146.94,146.85,36.1831]
[1642151227536,1.94864444,146.94,146.85,36.1831]
[1642151228233,1.94864444,146.94,146.85,38.02569718]
[1642151228737,0.44864444,146.94,146.85,44.02569718]
[1642151229336,0.25,146.97,146.85,44.02569718]
[1642151229734,0.25,146.97,146.85,66.81589718]
[1642151229935,2.722,146.99,146.85,67.07589718]
[1642151230137,15.74323162,147.0,146.85,66.81589718]
[1642151230937,24.9661,146.99,146.85,64.9733]
[1642151231137,27.6881,146.99,146.85,64.9733]
[1642151231342,27.9381,146.99,146.85,64.9733]
[1642151231737,28.1981,146.99,146.85,64.9733]
[1642151232640,28.1981,146.99,146.85,64.7233]
[1642151233942,28.1981,146.99,146.85,64.9733]
[1642151234340,3.90201554,146.98,146.85,64.9733]
[1642151234541,2.722,146.97,146.85,64.9733]
[1642151234944,2.972,146.97,146.85,64.9733]
[1642151235444,3.232,146.97,146.85,64.9733]
[1642151236344,24.2092,146.96,146.85,64.9733]
[1642151236546,2.722,146.95,146.85,64.9733]
[1642151236942,2.972,146.95,146.85,64.9733]
[1642151237143,0.25,146.95,146.85,64.9733]
[1642151237344,0.25,146.95,146.85,58.7233]
[1642151237545,1.92685959,146.95,146.85,58.7233]
[1642151237744,2.722,146.94,146.85,2.723]
[1642151237947,2.972,146.94,146.85,2.723]
[1642151238145,11.58685959,146.93,146.85,2.723]
[1642151238346,2.723,146.92,146.85,2.723]
[1642151238545,2.973,146.92,146.85,26.0631]
[1642151238945,2.973,146.92,146.85,36.2739]
[1642151239746,2.973,146.92,146.85,33.5509]
[1642151239946,3.233,146.92,146.85,33.5509]
[1642151240678,0.51,146.92,146.85,33.5509]
[1642151240880,14.55985959,146.93,146.85,33.5509]
[1642151241078,14.81985959,146.93,146.85,33.5509]
[1642151241484,14.81985959,146.93,146.85,23.3401]
[1642151242380,13.143,146.93,146.85,23.3401]
[1642151242779,23.3549,146.93,146.84,26.58481687]
[1642151242981,25.03175959,146.93,146.84,26.58481687]
[1642151243381,25.03175959,146.93,146.82,22.5879]
[1642151244381,25.03175959,146.93,146.83,29.45916194]
[1642151245883,49.76905959,146.93,146.83,29.45916194]
[1642151246482,56.88057704,146.93,146.83,29.45916194]
[1642151246785,125.31057704,146.93,146.83,29.45916194]
[1642151249183,125.31057704,146.93,146.82,22.5879]
[1642151249783,56.62057704,146.93,146.82,22.5879]
[1642151250185,56.62057704,146.93,146.82,45.18952634]
[1642151250383,56.37057704,146.93,146.82,45.18952634]
[1642151251284,54.69371745,146.93,146.82,45.18952634]
[1642151251486,51.97071745,146.93,146.82,45.18952634]
[1642151252186,51.97071745,146.93,146.82,55.40242634]
[1642151252384,51.97071745,146.93,146.82,45.18952634]
[1642151252586,10.2139,146.9,146.82,45.18952634]
[1642151252986,10.4639,146.9,146.82,45.18952634]
[1642151253488,10.7239,146.9,146.82,45.18952634]
[1642151253688,10.7239,146.9,146.82,22.5879]
[1642151253887,20.6339,146.9,146.82,22.5879]
[1642151254088,2.723,146.89,146.78,2.723]
[1642151254388,10.2168,146.86,146.78,6.55198706]
[1642151254589,10.4668,146.86,146.79,25.51200533]
[1642151254787,10.4668,146.86,146.8,2.724]
[1642151256092,10.4668,146.86,146.79,28.23600533]
[1642151256291,10.4668,146.86,146.79,25.51200533]
[1642151257094,10.7268,146.86,146.79,25.51200533]
[1642151258094,10.7268,146.86,146.79,28.23600533]
[1642151260396,10.7268,146.86,146.79,25.51200533]
[1642151261597,10.7268,146.86,146.78,25.7413]
[1642151261796,10.2184,146.84,146.78,25.7413]
[1642151261996,10.4684,146.84,146.78,25.7413]
[1642151263596,10.4684,146.84,146.78,23.0173]
[1642151263997,10.7284,146.84,146.78,23.0173]
[1642151264398,10.7284,146.84,146.79,6.70480138]
[1642151265899,72.83085959,146.83,146.79,6.70480138]
[1642151266099,72.83085959,146.83,146.74,3.82898706]
[1642151266100,10.222,146.81,146.74,3.82898706]
[1642151266325,12.635,146.8,146.74,3.82898706]
[1642151266499,9.91,146.79,146.74,3.82898706]
[1642151266801,12.635,146.79,146.71,27.22847672]
[1642151266999,10.16,146.79,146.71,27.22847672]
[1642151267604,10.16,146.79,146.71,37.44897672]
[1642151268400,68.43,146.77,146.69,3.82898706]
[1642151268599,10.2277,146.73,146.69,3.82898706]
[1642151268799,20.1377,146.73,146.69,3.82898706]
[1642151269000,20.3877,146.73,146.69,3.82898706]
[1642151269601,20.3877,146.73,146.68,2.725]
[1642151269800,20.3877,146.73,146.66,22.8542677]
[1642151270001,20.6477,146.73,146.66,22.8542677]
[1642151271201,10.42,146.73,146.66,22.8542677]
[1642151271902,10.16,146.73,146.66,22.8542677]
[1642151273503,10.42,146.73,146.66,22.8542677]
[1642151274803,10.42,146.73,146.67,2.726]
[1642151276104,10.42,146.73,146.66,22.8542677]
[1642151277911,10.16,146.73,146.66,22.8542677]
[1642151278909,10.16,146.73,146.66,33.0776677]
[1642151280010,10.42,146.73,146.66,33.0776677]
[1642151284143,10.42,146.73,146.66,22.8542677]
[1642151285242,10.42,146.73,146.66,33.0777677]
[1642151291752,10.42,146.73,146.66,22.8542677]
[1642151291951,10.42,146.73,146.65,31.03348706]
[1642151292352,2.726,146.72,146.65,31.03348706]
[1642151292579,2.976,146.72,146.65,31.03348706]
[1642151292952,2.976,146.72,146.65,59.13037433]
[1642151293154,2.976,146.72,146.65,55.30138727]
[1642151293155,13.2028,146.72,146.65,55.30138727]
[1642151293354,10.4768,146.72,146.65,55.30138727]
[1642151294553,10.4768,146.72,146.65,52.57538727]
[1642151294754,0.25,146.72,146.65,52.57538727]
[1642151294955,12.886,146.73,146.65,52.57538727]
[1642151295754,23.1116,146.73,146.65,52.57538727]
[1642151295957,23.3716,146.73,146.65,52.57538727]
[1642151296355,13.146,146.73,146.65,52.57538727]
[1642151296858,13.146,146.73,146.65,28.09688727]
[1642151297057,14.82285959,146.73,146.65,28.09688727]
[1642151297256,14.56285959,146.73,146.65,28.09688727]
[1642151297456,14.56285959,146.73,146.66,1.82031007]
[1642151297756,11.83685959,146.73,146.66,1.82031007]
[1642151297956,22.06265959,146.73,146.66,1.82031007]
[1642151299762,11.83685959,146.73,146.66,1.82031007]
[1642151299963,11.83685959,146.73,146.66,12.04431007]
[1642151300789,2.726,146.72,146.66,12.04431007]
[1642151300990,2.976,146.72,146.66,12.04431007]
[1642151301392,0.25,146.72,146.66,12.04431007]
[1642151302393,14.82285959,146.73,146.66,12.04431007]
[1642151302589,14.82285959,146.73,146.66,1.82031007]
[1642151305401,25.04875959,146.73,146.66,1.82031007]
[1642151305896,24.78875959,146.73,146.66,1.82031007]
[1642151306095,23.1119,146.73,146.67,29.31453387]
[1642151306296,20.3859,146.73,146.67,29.31453387]
[1642151307199,20.3859,146.73,146.68,1.82031007]
[1642151307399,10.16,146.73,146.68,1.82031007]
[1642151307798,11.83685959,146.73,146.68,1.82031007]
[1642151308499,2.726,146.72,146.68,1.82031007]
[1642151308699,12.636,146.72,146.68,1.82031007]
[1642151308902,12.886,146.72,146.68,1.82031007]
[1642151309602,13.146,146.72,146.68,1.82031007]
[1642151310303,3.236,146.72,146.68,1.82031007]
[1642151311304,0.51,146.72,146.68,1.82031007]
[1642151311504,26.0431,146.74,146.68,1.82031007]
[1642151311706,23.5771,146.74,146.68,1.82031007]
[1642151312106,23.5771,146.74,146.68,1.84031007]
[1642151312504,23.3271,146.74,146.68,1.84031007]
[1642151313503,4.40285959,146.75,146.68,1.84031007]
[1642151313702,37.69735959,146.77,146.68,1.84031007]
[1642151313904,0.25,146.75,146.69,22.726]
[1642151314105,37.94735959,146.77,146.7,22.8367639]
[1642151314307,37.94735959,146.77,146.7,24.65707397]
[1642151316206,48.17005959,146.77,146.7,24.65707397]
[1642151316410,45.44405959,146.77,146.7,24.65707397]
[1642151317008,35.48135959,146.77,146.7,24.65707397]
[1642151317206,33.8045,146.77,146.7,24.67707397]
[1642151317607,33.5545,146.77,146.7,24.67707397]
[1642151319009,33.8045,146.77,146.7,24.67707397]
[1642151319609,23.8945,146.77,146.7,24.67707397]
[1642151319809,0.51,146.77,146.7,24.67707397]
[1642151320010,12.947,146.8,146.71,24.4226]
[1642151320211,9.91,146.82,146.72,2.725]
[1642151320412,3.90350899,146.83,146.73,22.9336901]
[1642151320614,3.90350899,146.84,146.74,25.3302]
[1642151321011,2.724,146.83,146.74,22.6052]
[1642151321412,2.974,146.83,146.74,22.6052]
[1642151322013,10.2201,146.81,146.74,22.6052]
[1642151322411,10.4701,146.81,146.74,22.6052]
[1642151323013,10.7301,146.81,146.74,22.6052]
[1642151323612,10.4701,146.81,146.74,22.6052]
[1642151323815,0.25,146.81,146.74,22.6052]
[1642151324012,37.3273,146.83,146.75,1.82031007]
[1642151324212,37.3273,146.83,146.76,23.70396492]
[1642151324812,2.974,146.83,146.76,23.70396492]
[1642151325012,2.984,146.83,146.76,23.70396492]
[1642151325415,0.26,146.83,146.76,23.70396492]
[1642151325812,20.1279,146.84,146.76,23.70396492]
[1642151326013,20.3879,146.84,146.76,23.70396492]
[1642151326213,20.3879,146.84,146.76,33.92156492]
[1642151326640,20.1279,146.84,146.76,33.92156492]
[1642151326841,20.1279,146.84,146.77,24.5386]
[1642151327541,20.3779,146.84,146.78,1.82031007]
[1642151327941,10.42,146.84,146.79,24.50514035]
[1642151328744,0.51,146.84,146.79,24.50514035]
[1642151328944,2.724,146.86,146.79,24.50514035]
[1642151328945,3.90350899,146.88,146.8,2.724]
[1642151329245,534.47099606,146.89,146.8,26.148]
[1642151329444,534.47099606,146.89,146.8,26.398]
[1642151329648,534.47099606,146.89,146.8,26.148]
[1642151330048,534.47099606,146.89,146.8,26.398]
[1642151330245,534.47099606,146.89,146.84,10.2117]